[Event "Titled Tuesday Blitz May 03 Late 2022"]
[White "Nakamura, Hikaru"]
[Black "Lashkin, Jegor"]
[WhiteFideId "2016192"]
[BlackFideId "13907808"]
[WhiteElo "2850"]
[BlackElo "2368"]
[Result "1-0"]
[Round "03"]
[TimeControl "180+1"]
[Date "2022.05.03"]
[WhiteClock "0:00:42"]
[BlackClock "0:00:05"]

1. Nf3 {[%clk 0:03:00]}  d5 {[%clk 0:03:00]} 2. b3 {[%clk 0:03:00]}  Nf6 {[%clk 0:02:59]} 3. g3 {[%clk 0:03:00]}  c5 {[%clk 0:02:58]} 4. Bb2 {[%clk 0:03:00]}  Nc6 {[%clk 0:02:57]} 5. d4 {[%clk 0:03:00]}  e6 {[%clk 0:02:52]} 6. Bg2 {[%clk 0:02:59]}  Be7 {[%clk 0:02:51]} 7. e3 {[%clk 0:03:00]}  O-O {[%clk 0:02:51]} 8. O-O {[%clk 0:03:00]}  b6 {[%clk 0:02:51]} 9. c4 {[%clk 0:03:01]}  Bb7 {[%clk 0:02:49]} 10. cxd5 {[%clk 0:02:59]}  Nxd5 {[%clk 0:02:47]} 11. dxc5 {[%clk 0:02:59]}  Bxc5 {[%clk 0:02:45]} 12. Qe2 {[%clk 0:02:59]}  Qe7 {[%clk 0:02:44]} 13. a3 {[%clk 0:02:58]}  a5 {[%clk 0:02:43]} 14. Rc1 {[%clk 0:02:57]}  Rfd8 {[%clk 0:02:42]} 15. Nbd2 {[%clk 0:02:56]}  Ba6 {[%clk 0:02:38]} 16. Qe1 {[%clk 0:02:55]}  Rac8 {[%clk 0:02:30]} 17. Ne4 {[%clk 0:02:54]}  h6 {[%clk 0:02:14]} 18. Nxc5 {[%clk 0:02:47]}  bxc5 {[%clk 0:02:15]} 19. Nd2 {[%clk 0:02:46]}  Rb8 {[%clk 0:02:09]} 20. Ra2 {[%clk 0:02:37]}  Rdc8 {[%clk 0:01:47]} 21. Ba1 {[%clk 0:02:37]}  Bd3 {[%clk 0:01:37]} 22. Bf1 {[%clk 0:02:30]}  Bxf1 {[%clk 0:01:36]} 23. Qxf1 {[%clk 0:02:30]}  Nf6 {[%clk 0:01:05]} 24. Rac2 {[%clk 0:02:19]}  Nd7 {[%clk 0:01:05]} 25. Qe2 {[%clk 0:02:11]}  Rb6 {[%clk 0:01:03]} 26. Bc3 {[%clk 0:02:00]}  Ra8 {[%clk 0:00:50]} 27. Qg4 {[%clk 0:01:55]}  Qg5 {[%clk 0:00:50]} 28. Qa4 {[%clk 0:01:49]}  Qd5 {[%clk 0:00:40]} 29. Nc4 {[%clk 0:01:48]}  Rb7 {[%clk 0:00:35]} 30. Rd2 {[%clk 0:01:49]}  Qf3 {[%clk 0:00:35]} 31. Nd6 {[%clk 0:01:39]}  Rbb8 {[%clk 0:00:31]} 32. Qe4 {[%clk 0:01:38]}  Qxe4 {[%clk 0:00:26]} 33. Nxe4 {[%clk 0:01:39]}  Ra7 {[%clk 0:00:23]} 34. Rcd1 {[%clk 0:01:37]}  f5 {[%clk 0:00:16]} 35. Rxd7 {[%clk 0:01:34]}  fxe4 {[%clk 0:00:15]} 36. Rxa7 {[%clk 0:01:34]}  Nxa7 {[%clk 0:00:15]} 37. Rd7 {[%clk 0:01:34]}  Rxb3 {[%clk 0:00:15]} 38. Rxg7+ {[%clk 0:01:33]}  Kf8 {[%clk 0:00:15]} 39. Rxa7 {[%clk 0:01:34]}  Rxc3 {[%clk 0:00:15]} 40. Rxa5 {[%clk 0:01:35]}  Ke7 {[%clk 0:00:14]} 41. a4 {[%clk 0:01:34]}  Kd6 {[%clk 0:00:14]} 42. Ra8 {[%clk 0:01:33]}  Ra3 {[%clk 0:00:14]} 43. g4 {[%clk 0:01:31]}  Kc7 {[%clk 0:00:12]} 44. Ra6 {[%clk 0:01:27]}  Kd7 {[%clk 0:00:10]} 45. Ra7+ {[%clk 0:01:15]}  Kc6 {[%clk 0:00:10]} 46. Ra8 {[%clk 0:01:16]}  Kd7 {[%clk 0:00:10]} 47. Kf1 {[%clk 0:00:53]}  c4 {[%clk 0:00:10]} 48. Ke1 {[%clk 0:00:52]}  Ra2 {[%clk 0:00:10]} 49. a5 {[%clk 0:00:49]}  c3 {[%clk 0:00:10]} 50. Kd1 {[%clk 0:00:49]}  Rxf2 {[%clk 0:00:10]} 51. a6 {[%clk 0:00:49]}  Ra2 {[%clk 0:00:08]} 52. a7 {[%clk 0:00:48]}  Kc7 {[%clk 0:00:08]} 53. Rh8 {[%clk 0:00:48]}  Rxa7 {[%clk 0:00:07]} 54. Rh7+ {[%clk 0:00:40]}  Kb6 {[%clk 0:00:08]} 55. Rxa7 {[%clk 0:00:40]}  Kxa7 {[%clk 0:00:09]} 56. h4 {[%clk 0:00:41]}  Kb6 {[%clk 0:00:07]} 57. g5 {[%clk 0:00:41]}  hxg5 {[%clk 0:00:07]} 58. hxg5 {[%clk 0:00:42]}  Kc5 {[%clk 0:00:05]} 59. g6 {[%clk 0:00:42]}  Kc4 {[%clk 0:00:05]} 60. Kc2 {[%clk 0:00:42]} 1-0


[Site "https://www.chess.com"]

[Event "Titled Tuesday Blitz May 03 Late 2022"]
[White "Narayanan.S.L"]
[Black "Yaran, Siar"]
[WhiteFideId "5058422"]
[BlackFideId "6323006"]
[WhiteElo "2494"]
[BlackElo "1977"]
[Result "1-0"]
[Round "03"]
[TimeControl "180+1"]
[Date "2022.05.03"]
[WhiteClock "0:01:12"]
[BlackClock "0:00:01"]

1. Nf3 {[%clk 0:02:57]}  Nf6 {[%clk 0:02:59]} 2. c4 {[%clk 0:02:57]}  e6 {[%clk 0:03:00]} 3. Nc3 {[%clk 0:02:54]}  d5 {[%clk 0:03:00]} 4. d4 {[%clk 0:02:54]}  Be7 {[%clk 0:03:00]} 5. g4 {[%clk 0:02:52]}  c5 {[%clk 0:02:48]} 6. g5 {[%clk 0:02:51]}  Ne4 {[%clk 0:02:48]} 7. cxd5 {[%clk 0:02:49]}  exd5 {[%clk 0:02:46]} 8. h4 {[%clk 0:02:49]}  Nc6 {[%clk 0:02:46]} 9. Bg2 {[%clk 0:02:49]}  Bg4 {[%clk 0:02:42]} 10. dxc5 {[%clk 0:02:49]}  Bxc5 {[%clk 0:02:42]} 11. O-O {[%clk 0:02:49]}  Nxc3 {[%clk 0:01:55]} 12. bxc3 {[%clk 0:02:48]}  h6 {[%clk 0:01:55]} 13. Qa4 {[%clk 0:02:42]}  Bxf3 {[%clk 0:01:43]} 14. exf3 {[%clk 0:02:39]}  hxg5 {[%clk 0:01:38]} 15. Re1+ {[%clk 0:02:38]}  Kf8 {[%clk 0:01:37]} 16. Bxg5 {[%clk 0:02:38]}  Qb6 {[%clk 0:01:21]} 17. Qc2 {[%clk 0:02:35]}  f6 {[%clk 0:01:14]} 18. Bf4 {[%clk 0:02:34]}  Rxh4 {[%clk 0:01:11]} 19. Bg3 {[%clk 0:02:34]}  Rh6 {[%clk 0:00:51]} 20. Rab1 {[%clk 0:02:32]}  Qa6 {[%clk 0:00:46]} 21. Qb3 {[%clk 0:02:25]}  Rd8 {[%clk 0:00:32]} 22. Qxb7 {[%clk 0:02:25]}  Qxb7 {[%clk 0:00:32]} 23. Rxb7 {[%clk 0:02:25]}  Bd6 {[%clk 0:00:32]} 24. f4 {[%clk 0:02:24]}  g5 {[%clk 0:00:27]} 25. Re6 {[%clk 0:02:00]}  gxf4 {[%clk 0:00:23]} 26. Bxf4 {[%clk 0:01:57]}  Bxf4 {[%clk 0:00:21]} 27. Rxc6 {[%clk 0:01:58]}  Be5 {[%clk 0:00:12]} 28. Rc5 {[%clk 0:01:53]}  d4 {[%clk 0:00:11]} 29. cxd4 {[%clk 0:01:52]}  Bxd4 {[%clk 0:00:12]} 30. Rcc7 {[%clk 0:01:51]}  Rg6 {[%clk 0:00:10]} 31. Kf1 {[%clk 0:01:50]}  Bb6 {[%clk 0:00:09]} 32. Rf7+ {[%clk 0:01:49]}  Kg8 {[%clk 0:00:10]} 33. Be4 {[%clk 0:01:48]}  Rh6 {[%clk 0:00:10]} 34. Bh7+ {[%clk 0:01:41]}  Kh8 {[%clk 0:00:10]} 35. Bf5 {[%clk 0:01:38]}  Rh5 {[%clk 0:00:10]} 36. Rxf6 {[%clk 0:01:33]}  Kg8 {[%clk 0:00:06]} 37. Bg6 {[%clk 0:01:27]}  Re5 {[%clk 0:00:03]} 38. Bf7+ {[%clk 0:01:26]}  Kg7 {[%clk 0:00:02]} 39. Rf3 {[%clk 0:01:25]}  Kh6 {[%clk 0:00:02]} 40. Bb3 {[%clk 0:01:23]}  Rd2 {[%clk 0:00:01]} 41. Rh3+ {[%clk 0:01:14]}  Kg5 {[%clk 0:00:01]} 42. Rg3+ {[%clk 0:01:13]}  Kf6 {[%clk 0:00:01]} 43. Rf7# {[%clk 0:01:12]} 1-0


[Site "https://www.chess.com"]

[Event "Titled Tuesday Blitz May 03 Late 2022"]
[White "Ohanyan, Emin"]
[Black "Drygalov, Sergey"]
[WhiteFideId "13312022"]
[BlackFideId "24171743"]
[WhiteElo "1927"]
[BlackElo "2514"]
[Result "1-0"]
[Round "03"]
[TimeControl "180+1"]
[Date "2022.05.03"]
[WhiteClock "0:00:23"]
[BlackClock "0:00:12"]

1. e4 {[%clk 0:03:00]}  e5 {[%clk 0:02:56]} 2. Nc3 {[%clk 0:02:58]}  Nf6 {[%clk 0:02:56]} 3. Bc4 {[%clk 0:02:58]}  Bc5 {[%clk 0:02:55]} 4. d3 {[%clk 0:02:59]}  d6 {[%clk 0:02:55]} 5. f4 {[%clk 0:02:58]}  Ng4 {[%clk 0:02:49]} 6. f5 {[%clk 0:02:44]}  Nf2 {[%clk 0:02:45]} 7. Qh5 {[%clk 0:02:44]}  g6 {[%clk 0:02:43]} 8. Qh6 {[%clk 0:02:20]}  Nxh1 {[%clk 0:02:19]} 9. Bg5 {[%clk 0:01:26]}  Qd7 {[%clk 0:01:39]} 10. Nd5 {[%clk 0:01:12]}  Qa4 {[%clk 0:01:23]} 11. Qg7 {[%clk 0:00:35]}  Qa5+ {[%clk 0:00:44]} 12. c3 {[%clk 0:00:23]}  Rf8 {[%clk 0:00:30]} 13. Nf6+ {[%clk 0:00:13]}  Ke7 {[%clk 0:00:29]} 14. Nxh7+ {[%clk 0:00:12]}  Kd7 {[%clk 0:00:30]} 15. Nxf8+ {[%clk 0:00:06]}  Kc6 {[%clk 0:00:30]} 16. b4 {[%clk 0:00:06]}  Bxb4 {[%clk 0:00:30]} 17. cxb4 {[%clk 0:00:06]}  Qxb4+ {[%clk 0:00:30]} 18. Bd2 {[%clk 0:00:07]}  Qc5 {[%clk 0:00:31]} 19. Nh3 {[%clk 0:00:04]}  b5 {[%clk 0:00:19]} 20. Bd5+ {[%clk 0:00:04]}  Kb6 {[%clk 0:00:20]} 21. Bxa8 {[%clk 0:00:03]}  Qd4 {[%clk 0:00:16]} 22. Rc1 {[%clk 0:00:02]}  Qxd3 {[%clk 0:00:17]} 23. Qh6 {[%clk 0:00:02]}  c5 {[%clk 0:00:04]} 24. Qe3 {[%clk 0:00:02]}  Qd4 {[%clk 0:00:03]} 25. Qxd4 {[%clk 0:00:02]}  exd4 {[%clk 0:00:04]} 26. fxg6 {[%clk 0:00:03]}  fxg6 {[%clk 0:00:05]} 27. Nxg6 {[%clk 0:00:04]}  Nd7 {[%clk 0:00:05]} 28. Nf2 {[%clk 0:00:04]}  Nxf2 {[%clk 0:00:05]} 29. Kxf2 {[%clk 0:00:05]}  Nf6 {[%clk 0:00:05]} 30. Bd5 {[%clk 0:00:05]}  Ng4+ {[%clk 0:00:05]} 31. Kg3 {[%clk 0:00:05]}  c4 {[%clk 0:00:05]} 32. Bb4 {[%clk 0:00:05]}  a5 {[%clk 0:00:05]} 33. Bxd6 {[%clk 0:00:05]}  c3 {[%clk 0:00:04]} 34. Ne5 {[%clk 0:00:04]}  Nf6 {[%clk 0:00:04]} 35. Nd3 {[%clk 0:00:04]}  b4 {[%clk 0:00:04]} 36. Be5 {[%clk 0:00:04]}  Nxd5 {[%clk 0:00:02]} 37. exd5 {[%clk 0:00:05]}  Ba6 {[%clk 0:00:03]} 38. Bxd4+ {[%clk 0:00:05]}  Kb5 {[%clk 0:00:03]} 39. Nxb4 {[%clk 0:00:06]}  axb4 {[%clk 0:00:04]} 40. Bxc3 {[%clk 0:00:06]}  bxc3 {[%clk 0:00:05]} 41. Rxc3 {[%clk 0:00:07]}  Bb7 {[%clk 0:00:05]} 42. d6 {[%clk 0:00:08]}  Bc6 {[%clk 0:00:02]} 43. Rxc6 {[%clk 0:00:08]}  Kxc6 {[%clk 0:00:02]} 44. a4 {[%clk 0:00:09]}  Kxd6 {[%clk 0:00:03]} 45. a5 {[%clk 0:00:09]}  Kc6 {[%clk 0:00:04]} 46. h4 {[%clk 0:00:10]}  Kb5 {[%clk 0:00:05]} 47. h5 {[%clk 0:00:11]}  Kxa5 {[%clk 0:00:06]} 48. h6 {[%clk 0:00:12]}  Kb4 {[%clk 0:00:07]} 49. h7 {[%clk 0:00:13]}  Ka3 {[%clk 0:00:08]} 50. h8=Q {[%clk 0:00:14]}  Ka2 {[%clk 0:00:08]} 51. Qf6 {[%clk 0:00:14]}  Kb1 {[%clk 0:00:09]} 52. Qf3 {[%clk 0:00:15]}  Ka2 {[%clk 0:00:10]} 53. Kf4 {[%clk 0:00:16]}  Ka1 {[%clk 0:00:11]} 54. Qf2 {[%clk 0:00:17]}  Kb1 {[%clk 0:00:08]} 55. Qd2 {[%clk 0:00:17]}  Ka1 {[%clk 0:00:09]} 56. g4 {[%clk 0:00:18]}  Kb1 {[%clk 0:00:09]} 57. g5 {[%clk 0:00:19]}  Ka1 {[%clk 0:00:10]} 58. g6 {[%clk 0:00:20]}  Kb1 {[%clk 0:00:11]} 59. g7 {[%clk 0:00:21]}  Ka1 {[%clk 0:00:12]} 60. g8=Q {[%clk 0:00:22]}  Kb1 {[%clk 0:00:12]} 61. Qga2# {[%clk 0:00:23]} 1-0


[Site "https://www.chess.com"]

[Event "Titled Tuesday Blitz May 03 Late 2022"]
[White "Ovezdurdyyeva, Jemal"]
[Black "Sanchez, Robert"]
[WhiteFideId "14001888"]
[BlackFideId "2034360"]
[WhiteElo "1946"]
[BlackElo "2428"]
[Result "0-1"]
[Round "03"]
[TimeControl "180+1"]
[Date "2022.05.03"]
[WhiteClock "0:01:00"]
[BlackClock "0:01:03"]

1. e4 {[%clk 0:03:00]}  e6 {[%clk 0:02:59]} 2. d4 {[%clk 0:02:59]}  d5 {[%clk 0:03:00]} 3. Nd2 {[%clk 0:03:00]}  Nf6 {[%clk 0:03:00]} 4. e5 {[%clk 0:02:57]}  Nfd7 {[%clk 0:03:00]} 5. f4 {[%clk 0:02:57]}  c5 {[%clk 0:03:01]} 6. c3 {[%clk 0:02:55]}  Nc6 {[%clk 0:03:01]} 7. Ngf3 {[%clk 0:02:55]}  a5 {[%clk 0:03:02]} 8. a4 {[%clk 0:02:47]}  cxd4 {[%clk 0:02:59]} 9. cxd4 {[%clk 0:02:47]}  Bb4 {[%clk 0:02:52]} 10. Kf2 {[%clk 0:02:41]}  Qb6 {[%clk 0:02:50]} 11. Nb3 {[%clk 0:02:42]}  f6 {[%clk 0:02:50]} 12. Be3 {[%clk 0:02:38]}  O-O {[%clk 0:02:47]} 13. Bd3 {[%clk 0:02:35]}  fxe5 {[%clk 0:02:24]} 14. dxe5 {[%clk 0:02:33]}  Nc5 {[%clk 0:02:24]} 15. Bc2 {[%clk 0:02:21]}  Rxf4 {[%clk 0:02:05]} 16. Bxf4 {[%clk 0:01:55]}  Ne4+ {[%clk 0:01:24]} 17. Ke2 {[%clk 0:01:55]}  Qf2+ {[%clk 0:01:19]} 18. Kd3 {[%clk 0:01:55]}  b6 {[%clk 0:01:11]} 19. Nfd4 {[%clk 0:01:00]}  Nxd4 {[%clk 0:01:05]} 20. Nxd4 {[%clk 0:01:00]}  Nc5# {[%clk 0:01:03]} 0-1


[Site "https://www.chess.com"]

[Event "Titled Tuesday Blitz May 03 Late 2022"]
[White "Papasimakopoulos, Alexandros"]
[Black "Sarana, Alexey"]
[WhiteFideId "4244125"]
[BlackFideId "24133795"]
[WhiteElo "2340"]
[BlackElo "2666"]
[Result "0-1"]
[Round "03"]
[TimeControl "180+1"]
[Date "2022.05.03"]
[WhiteClock "0:00:52"]
[BlackClock "0:00:30"]

1. d4 {[%clk 0:03:00]}  Nf6 {[%clk 0:02:57]} 2. c4 {[%clk 0:03:01]}  e6 {[%clk 0:02:57]} 3. Nc3 {[%clk 0:03:02]}  Bb4 {[%clk 0:02:56]} 4. Qc2 {[%clk 0:03:02]}  d5 {[%clk 0:02:55]} 5. cxd5 {[%clk 0:03:02]}  exd5 {[%clk 0:02:56]} 6. Bg5 {[%clk 0:03:01]}  h6 {[%clk 0:02:55]} 7. Bh4 {[%clk 0:03:02]}  Nc6 {[%clk 0:02:56]} 8. e3 {[%clk 0:03:02]}  g5 {[%clk 0:02:56]} 9. Bg3 {[%clk 0:03:02]}  h5 {[%clk 0:02:56]} 10. Bb5 {[%clk 0:03:02]}  h4 {[%clk 0:02:56]} 11. Be5 {[%clk 0:03:02]}  O-O {[%clk 0:02:56]} 12. Bxc6 {[%clk 0:03:02]}  bxc6 {[%clk 0:02:56]} 13. h3 {[%clk 0:03:03]}  Ne4 {[%clk 0:02:56]} 14. Ne2 {[%clk 0:03:03]}  Bf5 {[%clk 0:02:55]} 15. Qa4 {[%clk 0:03:00]}  c5 {[%clk 0:02:53]} 16. O-O {[%clk 0:02:54]}  f6 {[%clk 0:02:53]} 17. Bh2 {[%clk 0:02:40]}  Bxc3 {[%clk 0:01:36]} 18. Nxc3 {[%clk 0:02:35]}  c4 {[%clk 0:01:24]} 19. Qc6 {[%clk 0:02:30]}  Nxc3 {[%clk 0:01:19]} 20. bxc3 {[%clk 0:02:31]}  Qd7 {[%clk 0:01:18]} 21. Qxd7 {[%clk 0:02:27]}  Bxd7 {[%clk 0:01:18]} 22. Bxc7 {[%clk 0:02:28]}  Rfc8 {[%clk 0:01:19]} 23. Bd6 {[%clk 0:02:28]}  Rc6 {[%clk 0:01:18]} 24. Bc5 {[%clk 0:02:24]}  Bf5 {[%clk 0:01:18]} 25. f3 {[%clk 0:02:23]}  Bd3 {[%clk 0:01:15]} 26. Rf2 {[%clk 0:02:21]}  Re6 {[%clk 0:01:13]} 27. Re1 {[%clk 0:02:09]}  Rae8 {[%clk 0:01:07]} 28. e4 {[%clk 0:02:09]}  dxe4 {[%clk 0:01:06]} 29. fxe4 {[%clk 0:02:10]}  Bxe4 {[%clk 0:01:02]} 30. Bxa7 {[%clk 0:02:10]}  Kf7 {[%clk 0:00:58]} 31. Bc5 {[%clk 0:02:09]}  Bc6 {[%clk 0:00:54]} 32. Rxe6 {[%clk 0:02:04]}  Rxe6 {[%clk 0:00:55]} 33. Kf1 {[%clk 0:01:55]}  Kg6 {[%clk 0:00:52]} 34. Ba7 {[%clk 0:01:42]}  Be4 {[%clk 0:00:50]} 35. Rd2 {[%clk 0:01:28]}  Bd5 {[%clk 0:00:40]} 36. Bc5 {[%clk 0:01:20]}  Re3 {[%clk 0:00:37]} 37. Bb4 {[%clk 0:01:21]}  f5 {[%clk 0:00:33]} 38. a4 {[%clk 0:01:21]}  g4 {[%clk 0:00:33]} 39. hxg4 {[%clk 0:01:21]}  fxg4 {[%clk 0:00:34]} 40. a5 {[%clk 0:01:17]}  g3 {[%clk 0:00:34]} 41. a6 {[%clk 0:01:12]}  Re6 {[%clk 0:00:34]} 42. Ra2 {[%clk 0:01:08]}  Be4 {[%clk 0:00:32]} 43. Ke1 {[%clk 0:00:58]}  Bxg2+ {[%clk 0:00:30]} 44. Kd2 {[%clk 0:00:56]}  h3 {[%clk 0:00:30]} 45. a7 {[%clk 0:00:49]}  h2 {[%clk 0:00:29]} 46. a8=Q {[%clk 0:00:49]}  Bxa8 {[%clk 0:00:29]} 47. Rxa8 {[%clk 0:00:50]}  h1=Q {[%clk 0:00:30]} 48. Rg8+ {[%clk 0:00:51]}  Kf5 {[%clk 0:00:30]} 49. Rxg3 {[%clk 0:00:52]}  Qe1+ {[%clk 0:00:29]} 50. Kc2 {[%clk 0:00:52]}  Re2# {[%clk 0:00:30]} 0-1


[Site "https://www.chess.com"]

[Event "Titled Tuesday Blitz May 03 Late 2022"]
[White "Paravyan, David"]
[Black "Vypkhaniuk, Ihor"]
[WhiteFideId "4194985"]
[BlackFideId "14112256"]
[WhiteElo "2569"]
[BlackElo "2346"]
[Result "1/2-1/2"]
[Round "03"]
[TimeControl "180+1"]
[Date "2022.05.03"]
[WhiteClock "0:00:12"]
[BlackClock "0:00:22"]

1. e4 {[%clk 0:03:00]}  d5 {[%clk 0:02:57]} 2. exd5 {[%clk 0:03:00]}  Nf6 {[%clk 0:02:58]} 3. d4 {[%clk 0:03:00]}  Bg4 {[%clk 0:02:58]} 4. f3 {[%clk 0:03:00]}  Bf5 {[%clk 0:02:58]} 5. g4 {[%clk 0:02:57]}  Bg6 {[%clk 0:02:54]} 6. c4 {[%clk 0:02:57]}  e6 {[%clk 0:02:50]} 7. Nc3 {[%clk 0:02:29]}  exd5 {[%clk 0:02:40]} 8. g5 {[%clk 0:02:09]}  Nh5 {[%clk 0:02:39]} 9. Nxd5 {[%clk 0:02:09]}  Bd6 {[%clk 0:02:18]} 10. c5 {[%clk 0:02:08]}  Bxh2 {[%clk 0:01:59]} 11. Qe2+ {[%clk 0:02:07]}  Kf8 {[%clk 0:01:59]} 12. Qxh2 {[%clk 0:02:03]}  Qxd5 {[%clk 0:01:58]} 13. Qxc7 {[%clk 0:01:58]}  Nc6 {[%clk 0:01:58]} 14. Ne2 {[%clk 0:01:42]}  Nxd4 {[%clk 0:01:26]} 15. Nxd4 {[%clk 0:01:38]}  Qxd4 {[%clk 0:01:27]} 16. Qd6+ {[%clk 0:01:33]}  Qxd6 {[%clk 0:01:27]} 17. cxd6 {[%clk 0:01:34]}  Ng3 {[%clk 0:01:18]} 18. Rh4 {[%clk 0:01:25]}  Nxf1 {[%clk 0:01:09]} 19. Kxf1 {[%clk 0:01:23]}  Ke8 {[%clk 0:01:09]} 20. Rb4 {[%clk 0:01:12]}  Kd7 {[%clk 0:01:06]} 21. Bf4 {[%clk 0:01:12]}  b5 {[%clk 0:01:01]} 22. Rc1 {[%clk 0:01:11]}  Rac8 {[%clk 0:00:58]} 23. Rc3 {[%clk 0:00:36]}  Rxc3 {[%clk 0:00:50]} 24. bxc3 {[%clk 0:00:37]}  f6 {[%clk 0:00:44]} 25. gxf6 {[%clk 0:00:35]}  gxf6 {[%clk 0:00:45]} 26. Ke2 {[%clk 0:00:34]}  a6 {[%clk 0:00:44]} 27. a4 {[%clk 0:00:32]}  Rb8 {[%clk 0:00:42]} 28. c4 {[%clk 0:00:19]}  Bf7 {[%clk 0:00:35]} 29. axb5 {[%clk 0:00:10]}  axb5 {[%clk 0:00:34]} 30. cxb5 {[%clk 0:00:07]}  Rxb5 {[%clk 0:00:31]} 31. Ra4 {[%clk 0:00:06]}  Rb7 {[%clk 0:00:23]} 32. Kf2 {[%clk 0:00:06]}  Bd5 {[%clk 0:00:19]} 33. Ra5 {[%clk 0:00:05]}  Ke6 {[%clk 0:00:18]} 34. Ra3 {[%clk 0:00:04]}  Rd7 {[%clk 0:00:18]} 35. Kg3 {[%clk 0:00:03]}  Rg7+ {[%clk 0:00:17]} 36. Kf2 {[%clk 0:00:04]}  Rd7 {[%clk 0:00:17]} 37. Re3+ {[%clk 0:00:04]}  Kf5 {[%clk 0:00:18]} 38. Bg3 {[%clk 0:00:04]}  Rb7 {[%clk 0:00:16]} 39. Kg2 {[%clk 0:00:05]}  Rb2+ {[%clk 0:00:16]} 40. Kg1 {[%clk 0:00:05]}  Rb7 {[%clk 0:00:16]} 41. Rd3 {[%clk 0:00:04]}  Bc6 {[%clk 0:00:15]} 42. Rc3 {[%clk 0:00:04]}  Bd5 {[%clk 0:00:14]} 43. Kf2 {[%clk 0:00:05]}  Ke6 {[%clk 0:00:13]} 44. Re3+ {[%clk 0:00:05]}  Kf5 {[%clk 0:00:13]} 45. Rd3 {[%clk 0:00:05]}  Ke6 {[%clk 0:00:13]} 46. Bf4 {[%clk 0:00:05]}  Rb2+ {[%clk 0:00:09]} 47. Kg3 {[%clk 0:00:05]}  Rb7 {[%clk 0:00:10]} 48. Re3+ {[%clk 0:00:05]}  Kf5 {[%clk 0:00:10]} 49. Rd3 {[%clk 0:00:05]}  Rg7+ {[%clk 0:00:09]} 50. Kf2 {[%clk 0:00:05]}  Kxf4 {[%clk 0:00:09]} 51. Rxd5 {[%clk 0:00:06]}  Rd7 {[%clk 0:00:10]} 52. Kg2 {[%clk 0:00:03]}  h5 {[%clk 0:00:10]} 53. Kf2 {[%clk 0:00:03]}  h4 {[%clk 0:00:10]} 54. Kg2 {[%clk 0:00:04]}  h3+ {[%clk 0:00:10]} 55. Kxh3 {[%clk 0:00:02]}  Kxf3 {[%clk 0:00:11]} 56. Kh2 {[%clk 0:00:03]}  Ke4 {[%clk 0:00:11]} 57. Rd1 {[%clk 0:00:03]}  Ke5 {[%clk 0:00:12]} 58. Kg3 {[%clk 0:00:03]}  Rxd6 {[%clk 0:00:12]} 59. Rxd6 {[%clk 0:00:04]}  Kxd6 {[%clk 0:00:12]} 60. Kf4 {[%clk 0:00:05]}  Ke6 {[%clk 0:00:13]} 61. Ke4 {[%clk 0:00:06]}  f5+ {[%clk 0:00:14]} 62. Kf4 {[%clk 0:00:06]}  Kf6 {[%clk 0:00:14]} 63. Kf3 {[%clk 0:00:07]}  Ke5 {[%clk 0:00:15]} 64. Ke3 {[%clk 0:00:08]}  f4+ {[%clk 0:00:16]} 65. Kf3 {[%clk 0:00:08]}  Kf5 {[%clk 0:00:17]} 66. Kf2 {[%clk 0:00:09]}  Ke4 {[%clk 0:00:18]} 67. Ke2 {[%clk 0:00:09]}  f3+ {[%clk 0:00:19]} 68. Kf2 {[%clk 0:00:10]}  Kf4 {[%clk 0:00:20]} 69. Kf1 {[%clk 0:00:11]}  Ke3 {[%clk 0:00:21]} 70. Ke1 {[%clk 0:00:11]}  f2+ {[%clk 0:00:21]} 71. Kf1 {[%clk 0:00:12]}  Kf3 {[%clk 0:00:22]} 1/2-1/2


[Site "https://www.chess.com"]

[Event "Titled Tuesday Blitz May 03 Late 2022"]
[White "Petrovic, Aleksa"]
[Black "Koellner, Ruben Gideon"]
[WhiteFideId "967629"]
[BlackFideId "12993093"]
[WhiteElo "2198"]
[BlackElo "2614"]
[Result "0-1"]
[Round "03"]
[TimeControl "180+1"]
[Date "2022.05.03"]
[WhiteClock "0:01:07"]
[BlackClock "0:02:12"]

1. d4 {[%clk 0:03:00]}  d6 {[%clk 0:02:56]} 2. Nf3 {[%clk 0:02:58]}  Nf6 {[%clk 0:02:56]} 3. c4 {[%clk 0:02:57]}  g6 {[%clk 0:02:56]} 4. Nc3 {[%clk 0:02:57]}  Bf5 {[%clk 0:02:56]} 5. Nh4 {[%clk 0:02:56]}  Bd7 {[%clk 0:02:50]} 6. e4 {[%clk 0:02:55]}  e5 {[%clk 0:02:50]} 7. d5 {[%clk 0:02:43]}  Nxe4 {[%clk 0:02:47]} 8. Nxe4 {[%clk 0:02:33]}  Qxh4 {[%clk 0:02:46]} 9. Bd3 {[%clk 0:02:22]}  h6 {[%clk 0:02:38]} 10. O-O {[%clk 0:02:14]}  Bg7 {[%clk 0:02:32]} 11. f4 {[%clk 0:02:00]}  f5 {[%clk 0:02:30]} 12. g3 {[%clk 0:01:30]}  Qe7 {[%clk 0:02:24]} 13. Nc3 {[%clk 0:01:20]}  e4 {[%clk 0:02:23]} 14. Be2 {[%clk 0:01:20]}  Na6 {[%clk 0:02:19]} 15. Be3 {[%clk 0:01:19]}  Nc5 {[%clk 0:02:17]} 16. Bd4 {[%clk 0:01:15]}  a5 {[%clk 0:02:15]} 17. b3 {[%clk 0:01:09]}  O-O {[%clk 0:02:14]} 18. a3 {[%clk 0:01:07]}  Bxd4+ {[%clk 0:02:12]} 0-1


[Site "https://www.chess.com"]

[Event "Titled Tuesday Blitz May 03 Late 2022"]
[White "Prohorov, Olexandr"]
[Black "Herrera Reyes, Jose Antonio"]
[WhiteFideId "14105578"]
[BlackFideId "2274914"]
[WhiteElo "1993"]
[BlackElo "2361"]
[Result "0-1"]
[Round "03"]
[TimeControl "180+1"]
[Date "2022.05.03"]
[WhiteClock "0:00:15"]
[BlackClock "0:00:34"]

1. Nf3 {[%clk 0:02:59]}  Nf6 {[%clk 0:02:58]} 2. d4 {[%clk 0:02:59]}  c5 {[%clk 0:02:57]} 3. d5 {[%clk 0:02:57]}  g6 {[%clk 0:02:56]} 4. c4 {[%clk 0:02:53]}  b5 {[%clk 0:02:56]} 5. cxb5 {[%clk 0:02:53]}  a6 {[%clk 0:02:56]} 6. b6 {[%clk 0:02:52]}  Bg7 {[%clk 0:02:56]} 7. Nc3 {[%clk 0:02:50]}  O-O {[%clk 0:02:57]} 8. e4 {[%clk 0:02:49]}  Qxb6 {[%clk 0:02:56]} 9. Nd2 {[%clk 0:02:49]}  e6 {[%clk 0:02:52]} 10. Nc4 {[%clk 0:02:49]}  Qb4 {[%clk 0:02:51]} 11. a3 {[%clk 0:02:45]}  Qb7 {[%clk 0:02:51]} 12. Bf4 {[%clk 0:01:43]}  exd5 {[%clk 0:02:46]} 13. exd5 {[%clk 0:01:43]}  d6 {[%clk 0:02:16]} 14. Be2 {[%clk 0:01:39]}  Nbd7 {[%clk 0:02:08]} 15. O-O {[%clk 0:01:35]}  Ne5 {[%clk 0:02:06]} 16. Nxd6 {[%clk 0:01:32]}  Qe7 {[%clk 0:02:03]} 17. Nc4 {[%clk 0:01:26]}  Nfd7 {[%clk 0:01:54]} 18. Re1 {[%clk 0:01:19]}  Qf6 {[%clk 0:01:53]} 19. Bg3 {[%clk 0:01:16]}  Bb7 {[%clk 0:01:53]} 20. Na5 {[%clk 0:01:07]}  Rab8 {[%clk 0:01:52]} 21. Ne4 {[%clk 0:00:58]}  Qd8 {[%clk 0:01:51]} 22. Nxb7 {[%clk 0:00:50]}  Rxb7 {[%clk 0:01:52]} 23. f4 {[%clk 0:00:48]}  Rxb2 {[%clk 0:01:21]} 24. fxe5 {[%clk 0:00:43]}  Nxe5 {[%clk 0:01:22]} 25. Nxc5 {[%clk 0:00:43]}  h5 {[%clk 0:01:12]} 26. Rc1 {[%clk 0:00:36]}  h4 {[%clk 0:01:04]} 27. Bf4 {[%clk 0:00:36]}  h3 {[%clk 0:01:02]} 28. g3 {[%clk 0:00:34]}  Qa5 {[%clk 0:00:59]} 29. d6 {[%clk 0:00:24]}  Rd8 {[%clk 0:00:51]} 30. Qd5 {[%clk 0:00:15]}  Nd7 {[%clk 0:00:37]} 31. Bg5 {[%clk 0:00:15]}  Re8 {[%clk 0:00:34]} 0-1


[Site "https://www.chess.com"]